bitfinex-derivatives/quotes_BTCF0:USTF0_20250329
["timestamp","ask_amount","ask_price","bid_price","bid_amount"]
[1743246388558,0.36996381,82984.0,82983.0,0.3556244]
[1743246388750,0.51086381,82984.0,82983.0,0.3556244]
[1743246388949,0.62996381,82984.0,82983.0,0.3556244]
[1743246390757,0.62996381,82984.0,82983.0,0.00216]
[1743246390948,0.75596381,82984.0,82983.0,0.1227244]
[1743246392456,0.1205789,82973.0,82960.0,0.1205977]
[1743246392651,0.1205789,82973.0,82972.0,0.2174088]
[1743246392652,0.3513789,82973.0,82972.0,0.2174088]
[1743246392957,0.3513789,82973.0,82972.0,0.2166088]
[1743246393767,0.5930789,82973.0,82972.0,0.2166088]
[1743246395865,0.5930789,82973.0,82959.0,0.54926182]
[1743246395866,0.1205862,82968.0,82959.0,0.1205987]
[1743246396067,0.7221062,82968.0,82959.0,0.1205987]
[1743246396264,0.7221062,82968.0,82962.0,0.1205947]
[1743246396568,0.7221062,82968.0,82963.0,0.1158]
[1743246396761,0.9647062,82968.0,82963.0,0.2332]
[1743246397062,0.9647062,82968.0,82967.0,0.0010608]
[1743246397063,0.9687062,82968.0,82967.0,0.0010608]
[1743246397264,0.9697062,82968.0,82967.0,0.0010608]
[1743246399058,0.6089062,82968.0,82967.0,0.1216485]
[1743246399356,0.24572,82968.0,82967.0,0.7218485]
[1743246399860,0.24572,82968.0,82967.0,0.9218485]
[1743246400166,0.3663062,82968.0,82967.0,0.9218485]
[1743246403472,0.24572,82968.0,82967.0,0.9218485]
[1743246403770,0.00572,82968.0,82967.0,0.9218485]
[1743246403959,0.005,82968.0,82967.0,0.9218485]
[1743246404665,0.10671032,82977.0,82976.0,0.1205746]
[1743246404862,0.39755032,82977.0,82976.0,0.1214146]
[1743246405364,0.39755032,82977.0,82976.0,0.2387146]
[1743246405573,0.51812342,82977.0,82976.0,0.2387146]
[1743246405773,0.10755032,82977.0,82976.0,0.5087146]
[1743246405977,0.10755032,82977.0,82976.0,0.7787146]
[1743246406171,0.10671032,82977.0,82976.0,0.7787146]
[1743246406566,0.10671032,82977.0,82976.0,0.7910204]
[1743246407061,0.10671032,82977.0,82976.0,0.7787146]
[1743246407577,0.10671032,82977.0,82976.0,0.9787146]
[1743246408472,0.14230003,82982.0,82981.0,0.1205673]
[1743246408774,0.14334004,82982.0,82981.0,0.1216073]
[1743246408974,0.00104001,82982.0,82981.0,0.1216073]
[1743246409175,0.1207438,82984.0,82983.0,0.1205644]
[1743246409363,0.1213838,82984.0,82983.0,0.3216044]
[1743246410067,0.3513838,82984.0,82983.0,0.20104]
[1743246410264,0.3513838,82984.0,82983.0,0.00104]
[1743246411179,0.1205702,82979.0,82978.0,0.1205717]
[1743246411469,0.38161021,82979.0,82978.0,0.1216117]
[1743246412869,0.38161021,82979.0,82978.0,0.00104]
[1743246414574,0.62161021,82979.0,82978.0,0.00104]
[1743246416081,0.62312001,82979.0,82971.0,0.03013]
[1743246416382,0.4813804,82972.0,82971.0,0.03013]
[1743246416578,0.7120204,82972.0,82971.0,0.03013]
[1743246416775,0.1205862,82968.0,82961.0,0.1206]
[1743246416982,0.3912262,82968.0,82961.0,0.1206]
[1743246417472,0.3912262,82968.0,82962.0,0.04821]
[1743246417673,0.5131262,82968.0,82962.0,0.04821]
[1743246417869,0.1205935,82963.0,82962.0,0.04821]
[1743246418076,0.3712335,82963.0,82962.0,0.04821]
[1743246418479,0.6183335,82963.0,82962.0,0.04821]
[1743246420171,0.49774,82963.0,82957.0,0.03013]
[1743246420372,0.1206007,82958.0,82957.0,0.03097]
[1743246420584,0.4013207,82958.0,82957.0,0.15277]
[1743246421182,0.6384207,82958.0,82957.0,0.15277]
[1743246421384,0.6384207,82958.0,82957.0,0.12264]
[1743246421782,0.28072,82958.0,82957.0,0.2432422]
[1743246422079,0.00072,82958.0,82957.0,0.2432422]
[1743246422477,0.25072,82958.0,82957.0,0.2432422]
[1743246422781,0.00072,82958.0,82957.0,0.4432422]
[1743246423379,0.3613207,82958.0,82957.0,0.4432422]
[1743246423585,0.3913207,82958.0,82957.0,0.4432422]
[1743246423784,0.1213207,82958.0,82957.0,0.4432422]
[1743246424087,0.4013207,82958.0,82957.0,0.4432422]
[1743246424276,0.00072,82958.0,82957.0,0.4432422]
[1743246424476,0.0001808,82966.0,82957.0,0.68344]
[1743246424679,0.0001808,82966.0,82965.0,0.4813906]
[1743246424980,0.0011008,82966.0,82965.0,1.0023106]
[1743246425175,0.14230003,82968.0,82967.0,0.1205877]
[1743246425371,0.14230003,82968.0,82967.0,0.6015877]
[1743246425579,0.14230003,82968.0,82967.0,0.8015877]
[1743246425779,0.14230003,82974.0,82972.0,0.1205804]
[1743246425982,0.14330003,82974.0,82973.0,0.3599789]
[1743246426289,0.40230003,82974.0,82973.0,0.3608989]
[1743246426483,0.14330003,82974.0,82973.0,0.3608989]
[1743246426785,0.14330003,82974.0,82973.0,0.5608989]
[1743246427687,0.39330003,82974.0,82973.0,0.9216989]
[1743246427883,0.40330003,82974.0,82973.0,0.9216989]
[1743246428081,0.40330003,82974.0,82973.0,0.5608989]
[1743246428287,0.50387753,82974.0,82973.0,0.9216989]
[1743246428688,0.51640766,82974.0,82973.0,0.00092]
[1743246428983,0.1205862,82968.0,82967.0,0.2381877]
[1743246429181,0.35162621,82968.0,82967.0,0.2392277]
[1743246429380,0.00104001,82968.0,82967.0,0.6000277]
[1743246429585,0.14230003,82974.0,82973.0,0.1205789]
[1743246429789,0.3814975,82974.0,82973.0,0.1214989]
[1743246430482,0.3814975,82974.0,82973.0,0.3517989]
[1743246430683,0.00092,82974.0,82973.0,0.3517989]
[1743246430878,0.1205762,82975.0,82974.0,0.1205775]
[1743246431086,0.13161621,82975.0,82974.0,0.3519175]
[1743246431688,0.37541621,82975.0,82974.0,0.3519175]
[1743246431990,0.0001808,82982.0,82981.0,0.1205673]
[1743246432193,0.26142081,82982.0,82981.0,0.4826073]
[1743246432376,0.2614608,82982.0,82981.0,0.7147073]
[1743246433589,0.0014608,82982.0,82981.0,0.7271549]
[1743246433777,0.0001808,82982.0,82981.0,0.7147073]
[1743246433982,0.0001808,82982.0,82981.0,0.9647073]
[1743246434591,0.0001808,82982.0,82981.0,1.2147073]
[1743246434785,0.1241,82994.0,82993.0,0.1205499]
[1743246434986,0.37534001,82994.0,82993.0,0.1217899]
[1743246435186,0.49588841,82994.0,82993.0,0.1217899]
[1743246435485,0.50815534,82994.0,82993.0,0.1217899]
[1743246435687,0.50815534,82994.0,82993.0,0.3554899]
[1743246435883,0.38405534,82994.0,82993.0,0.3554899]
[1743246436584,0.49915534,82994.0,82993.0,0.3554899]
[1743246436988,0.48688841,82994.0,82993.0,0.3554899]
[1743246437488,0.37178841,82994.0,82993.0,0.3554899]
[1743246437996,0.4993209,82994.0,82993.0,0.3554899]
[1743246439083,0.48688841,82994.0,82993.0,0.3554899]
[1743246439285,0.25124001,82994.0,82993.0,0.3554899]
[1743246439693,0.25124001,82994.0,82993.0,0.3856099]
[1743246440488,0.37178841,82994.0,82993.0,0.3856099]
[1743246440687,0.25124001,82994.0,82993.0,0.3856099]
[1743246441399,0.37178841,82994.0,82993.0,0.3856099]
[1743246443901,0.25124001,82994.0,82993.0,0.3856099]
[1743246444391,0.0004,82996.0,82995.0,0.120547]
[1743246444592,0.0004,82996.0,82995.0,0.122147]
[1743246444898,0.0001808,83002.0,83001.0,0.1205383]
[1743246445097,0.1301808,83002.0,83001.0,0.1221383]
[1743246445302,0.1301808,83002.0,83001.0,0.2392383]
[1743246445502,0.1301808,83002.0,83001.0,0.3570383]
[1743246446501,0.2507176,83002.0,83001.0,0.3570383]
[1743246448800,0.1301808,83002.0,83001.0,0.3570383]
[1743246450299,0.2507176,83002.0,83001.0,0.1221383]
[1743246450504,0.2507176,83002.0,83001.0,0.1205383]
[1743246450699,0.2507176,83002.0,83001.0,0.1221783]
[1743246451199,0.3681176,83002.0,83001.0,0.1221783]
[1743246452301,0.3681176,83002.0,83001.0,0.00164]
[1743246452501,0.1205484,82994.0,82993.0,0.0001808]
[1743246452708,0.35166841,82994.0,82993.0,0.0013408]
[1743246453400,0.59626841,82994.0,82993.0,0.0013408]
[1743246453608,0.1205673,82981.0,82977.0,0.1239]
[1743246453794,0.6843373,82981.0,82980.0,0.3382976]
[1743246454104,0.3235373,82981.0,82980.0,0.3382976]
[1743246454590,0.3235373,82981.0,82980.0,0.3684176]
[1743246455805,0.3235373,82981.0,82980.0,0.1518088]
[1743246456004,0.3235373,82981.0,82980.0,0.2757088]
[1743246456501,0.3235373,82981.0,82980.0,0.7530088]
[1743246457107,0.5648373,82981.0,82980.0,0.7530088]
[1743246457901,0.5648373,82981.0,82980.0,0.3922088]
[1743246458296,0.25116,82981.0,82980.0,0.3922088]
[1743246458807,0.20463237,82981.0,82980.0,0.8622088]
[1743246458999,0.26301616,82989.0,82988.0,0.1205571]
[1743246459193,0.52413617,82989.0,82988.0,0.1216771]
[1743246460093,0.52413617,82989.0,82988.0,0.2409771]
[1743246461790,0.52413617,82989.0,82988.0,0.00112]
[1743246462596,0.38167611,82989.0,82988.0,0.00112]
[1743246463701,0.38167611,82989.0,82988.0,0.1216771]
[1743246467007,0.26112001,82989.0,82988.0,0.1216771]
[1743246467303,0.14246006,82991.0,82990.0,0.1205542]
[1743246467606,0.17787504,82996.0,82995.0,0.120547]
[1743246467905,0.19931504,82996.0,82995.0,0.982787]
[1743246468107,0.17787504,82996.0,82995.0,0.982787]
[1743246468506,0.17787504,82996.0,82995.0,1.221387]
[1743246468698,0.17787504,82996.0,82995.0,1.23373082]
[1743246469004,0.21234325,83001.0,82995.0,1.23373082]
[1743246469208,0.21234325,83001.0,83000.0,0.4813397]
[1743246469408,0.21234325,83001.0,83000.0,0.8748597]
[1743246469807,0.21234325,83001.0,83000.0,1.0748597]
[1743246470604,0.21234325,83001.0,83000.0,1.2032597]
[1743246471307,0.21234325,83001.0,83000.0,0.9332597]
[1743246471510,0.0001808,83002.0,83001.0,0.1205383]
[1743246471710,0.0001808,83002.0,83001.0,0.2427783]
[1743246472112,0.2501808,83002.0,83001.0,0.2427783]
[1743246472311,0.0016208,83002.0,83001.0,0.3714783]
[1743246472506,0.0001808,83002.0,83001.0,0.3714783]
[1743246475315,0.0001808,83002.0,83001.0,0.6214783]
[1743246477108,0.2801808,83002.0,83001.0,0.6214783]
[1743246477314,0.0008208,83002.0,83001.0,0.6214783]
[1743246477615,0.0001808,83002.0,83001.0,0.6214783]
[1743246478012,0.0001808,83002.0,83001.0,0.8714783]
[1743246478412,0.0001808,83002.0,83001.0,0.9934783]
[1743246481612,0.0001808,83002.0,83001.0,1.0235983]
[1743246482010,0.0001808,83002.0,83001.0,1.7451983]
[1743246494738,0.1248,83027.0,83026.0,0.120502]
[1743246494942,0.1248,83027.0,83026.0,1.455542]
[1743246495237,0.1248,83027.0,83026.0,1.655542]
[1743246495842,0.1248,83027.0,83026.0,1.293582]
[1743246496033,0.1248,83027.0,83026.0,1.165542]
[1743246496034,0.5334,83027.0,83026.0,1.165542]
[1743246496233,0.53484,83027.0,83026.0,1.165542]
[1743246496742,0.24484,83027.0,83026.0,1.165542]
[1743246496939,0.2434,83027.0,83026.0,1.165542]
[1743246497645,0.2434,83027.0,83026.0,1.38138098]
[1743246497841,0.5234,83027.0,83026.0,1.38138098]
[1743246498028,0.52412,83027.0,83026.0,1.25942098]
[1743246498540,0.52412,83027.0,83026.0,1.05942098]
[1743246498940,0.52412,83027.0,83026.0,1.51942098]
[1743246499143,0.24412,83027.0,83026.0,1.64134098]
[1743246499445,0.4934,83027.0,83026.0,1.18134098]
[1743246499743,0.52488,83027.0,83026.0,1.18134098]
[1743246500239,0.24488,83027.0,83026.0,1.18134098]
[1743246500537,0.4834,83027.0,83026.0,1.38134098]
[1743246500837,0.24404,83027.0,83026.0,1.38134098]
[1743246501041,0.2434,83027.0,83026.0,1.38134098]
[1743246501229,0.1248,83027.0,83026.0,1.94134098]
[1743246501741,0.2505,83027.0,83026.0,1.94134098]
[1743246502844,0.2505,83027.0,83026.0,1.72473218]
[1743246503236,0.1248,83027.0,83026.0,1.72473218]
[1743246503835,0.1248,83027.0,83026.0,1.00313218]
[1743246504141,0.1283,83034.0,83033.0,0.1204918]
[1743246504341,0.12974,83034.0,83033.0,0.4827318]
[1743246504543,0.00144,83034.0,83033.0,0.9927318]
[1743246504739,0.1241,83036.0,83034.0,0.1204904]
[1743246505043,0.1241,83036.0,83034.0,0.5719304]
[1743246505244,0.1241,83036.0,83034.0,0.6994304]
[1743246505936,0.1241,83036.0,83034.0,0.8172304]
[1743246506340,0.1241,83036.0,83034.0,0.9391504]
[1743246507139,0.12648066,83035.0,83034.0,1.6607504]
[1743246507833,0.12648066,83035.0,83034.0,1.4154504]
[1743246508044,0.12648066,83035.0,83034.0,1.4506504]
[1743246508432,0.12648066,83035.0,83034.0,1.6506504]
[1743246509430,0.12648066,83035.0,83034.0,1.2898504]
[1743246513046,0.12648066,83035.0,83034.0,1.1679304]
[1743246513345,0.23648066,83035.0,83034.0,1.1720104]
[1743246513650,0.12648066,83035.0,83034.0,1.1720104]
[1743246514853,0.12648066,83035.0,83034.0,1.2934104]
[1743246515239,0.24908066,83035.0,83034.0,1.2934104]
[1743246520049,0.37956956,83035.0,83034.0,0.4827304]
[1743246520249,0.26052066,83035.0,83034.0,0.4827304]
[1743246520443,0.26052066,83035.0,83034.0,0.6827304]
[1743246522238,0.25052066,83035.0,83034.0,0.6827304]
[1743246522438,0.24908066,83035.0,83034.0,0.6827304]
[1743246522644,0.24908066,83035.0,83034.0,1.4097304]
[1743246522844,0.12278066,83035.0,83034.0,1.4097304]
[1743246523355,0.12278066,83035.0,83034.0,1.1597304]
[1743246523847,0.36278066,83035.0,83034.0,0.9297304]
[1743246524048,0.12342066,83035.0,83034.0,0.9297304]
[1743246524243,0.12278066,83035.0,83034.0,0.9297304]
[1743246524551,0.12422066,83035.0,83034.0,0.9297304]
[1743246524742,0.39422066,83035.0,83034.0,0.9297304]
[1743246525356,0.12422066,83035.0,83034.0,0.9297304]
[1743246525556,0.38278066,83035.0,83034.0,0.9297304]
[1743246525756,0.38422066,83035.0,83034.0,0.9297304]
[1743246525953,0.35422066,83035.0,83034.0,0.9297304]
[1743246526452,0.12422066,83035.0,83034.0,0.9297304]
[1743246526651,0.00018066,83035.0,83034.0,0.94175692]
[1743246526855,0.27018066,83035.0,83034.0,0.9297304]
[1743246527152,0.23162066,83035.0,83034.0,0.9297304]
[1743246527360,0.36042066,83035.0,83034.0,0.9297304]
[1743246527655,0.38042066,83035.0,83034.0,0.5689304]
[1743246527856,0.38042066,83035.0,83034.0,0.9297304]
[1743246528359,0.38042066,83035.0,83034.0,0.5689304]
[1743246528755,0.38042066,83035.0,83034.0,0.9297304]
[1743246529456,0.38042066,83035.0,83034.0,0.5689304]
[1743246529753,0.38042066,83035.0,83034.0,0.9297304]
[1743246531053,0.26162066,83035.0,83034.0,1.6363392]
[1743246531252,0.26018066,83035.0,83034.0,1.6363392]
[1743246531851,0.00018066,83035.0,83034.0,1.6363392]
[1743246533847,0.00018066,83035.0,83034.0,1.4197304]
[1743246537862,0.00018066,83035.0,83034.0,1.0589304]
[1743246538066,0.00018066,83035.0,83034.0,1.4197304]
[1743246539165,0.00018066,83035.0,83034.0,1.0589304]
[1743246539366,0.00018066,83035.0,83034.0,1.4197304]
[1743246543769,0.00018066,83035.0,83034.0,1.46251835]
[1743246544168,0.00018066,83035.0,83034.0,1.4197304]
[1743246544365,0.00018066,83035.0,83034.0,1.4227304]
[1743246545467,0.00018066,83035.0,83034.0,1.4247304]
[1743246546862,0.00018066,83035.0,83034.0,1.4237304]
[1743246548572,0.00018066,83035.0,83034.0,1.7845304]
[1743246548868,0.00018066,83035.0,83034.0,1.2775304]
[1743246549061,0.16018066,83035.0,83034.0,1.0475304]
[1743246549773,0.16166066,83035.0,83034.0,1.0475304]
[1743246550165,0.16018066,83035.0,83034.0,1.0475304]
[1743246550366,0.16162066,83035.0,83034.0,1.0475304]
[1743246550565,0.40332066,83035.0,83034.0,1.0475304]
[1743246550759,0.40332066,83035.0,83034.0,1.0455304]
[1743246550963,0.52380956,83035.0,83034.0,1.0435304]
[1743246551770,0.53582991,83035.0,83034.0,1.0435304]
[1743246553075,0.41534101,83035.0,83034.0,1.0435304]
[1743246553269,0.40332066,83035.0,83034.0,1.0435304]
[1743246554174,0.52380956,83035.0,83034.0,1.0435304]
[1743246554775,0.53603823,83035.0,83034.0,0.72304]
[1743246555775,0.68603823,83035.0,83034.0,0.72304]
[1743246556674,0.68603823,83035.0,83034.0,0.00144]
[1743246556877,0.68603823,83035.0,83034.0,0.1219304]
[1743246557874,0.65783823,83035.0,83034.0,0.1219304]
[1743246558181,0.76510279,83035.0,83034.0,0.1219304]
[1743246559282,0.76510279,83035.0,83034.0,0.00144]
[1743246561977,0.65783823,83035.0,83034.0,0.00144]
[1743246562178,0.53603823,83035.0,83034.0,0.1219304]
[1743246562687,0.53603823,83035.0,83034.0,0.3651304]
[1743246563288,0.53603823,83035.0,83034.0,0.5651304]
[1743246564984,0.53603823,83035.0,83034.0,0.3651304]
[1743246565288,0.53603823,83035.0,83034.0,0.00144]
[1743246565486,0.1204904,83034.0,83033.0,0.3987611]
[1743246565684,0.3711304,83034.0,83033.0,0.4002011]
[1743246565890,0.6208304,83034.0,83033.0,0.3701011]
[1743246566482,0.6208304,83034.0,83033.0,0.1701011]
[1743246566881,0.6208304,83034.0,83033.0,0.04961]
[1743246567081,0.6208304,83034.0,83033.0,0.1701018]
[1743246567790,0.6208304,83034.0,83033.0,0.04961]
[1743246567985,0.6208304,83034.0,83033.0,0.04817]
[1743246569680,0.6208304,83034.0,83033.0,0.1701018]
[1743246569884,0.72790169,83034.0,83033.0,0.1701018]
[1743246572087,0.72790169,83034.0,83033.0,0.1219318]
[1743246572788,0.72790169,83034.0,83033.0,0.00144]
[1743246572990,0.72790169,83034.0,83033.0,0.1204918]
[1743246573196,0.72790169,83034.0,83033.0,0.1219318]
[1743246574389,0.72790169,83034.0,83033.0,0.3550318]
[1743246577998,0.6208304,83034.0,83033.0,0.3550318]
[1743246581393,0.6208304,83034.0,83033.0,0.23454]
[1743246582397,0.6208304,83034.0,83033.0,0.3550318]
[1743246582896,0.6208304,83034.0,83033.0,0.11844]
[1743246583196,0.1204918,83033.0,83032.0,0.16257]
[1743246583398,0.4932318,83033.0,83032.0,0.16405]
[1743246583592,0.7406318,83033.0,83032.0,0.16405]
[1743246584102,0.7406318,83033.0,83032.0,0.16257]
[1743246586895,0.7406318,83033.0,83032.0,0.16405]
[1743246587197,0.8623918,83033.0,83032.0,0.16405]
[1743246587700,0.8623918,83033.0,83032.0,0.16257]
[1743246589495,0.87413552,83033.0,83032.0,0.16257]
[1743246589697,1.1111017,83033.0,83032.0,0.15086]
[1743246589892,0.1205034,83025.0,83024.0,0.1277]
[1743246590099,0.1807652,83022.0,83021.0,0.1205092]
[1743246590301,0.5736052,83022.0,83021.0,0.00104]
[1743246590500,0.9352052,83022.0,83021.0,0.00104]
[1743246590899,0.9352052,83022.0,83021.0,0.25354]
[1743246591307,0.9352052,83022.0,83021.0,0.3740492]
[1743246591506,0.9352052,83022.0,83021.0,0.25354]
[1743246592310,0.9352052,83022.0,83021.0,0.3740492]
[1743246593904,0.5736052,83022.0,83021.0,0.3740492]
[1743246594103,0.27108,83022.0,83021.0,0.3740492]
[1743246594705,0.3915878,83022.0,83021.0,0.3740492]
[1743246594901,0.53436245,83022.0,83021.0,0.5740492]
[1743246595515,0.41385465,83022.0,83021.0,0.5740492]
[1743246596112,0.41385465,83022.0,83021.0,0.8540492]
[1743246596413,0.14385465,83022.0,83021.0,1.3748492]
[1743246596606,0.14277465,83022.0,83021.0,1.3748492]
[1743246597513,0.08372635,83022.0,83021.0,2.1740492]
[1743246597815,0.08372635,83022.0,83021.0,2.2191822]
[1743246598809,0.10713825,83034.0,83033.0,0.1204918]
[1743246599113,0.10713825,83034.0,83033.0,1.1140918]
[1743246599114,0.10777825,83034.0,83033.0,1.1140918]
[1743246599318,0.10713825,83034.0,83033.0,1.1140918]
[1743246599518,0.10713825,83034.0,83033.0,1.3477918]
[1743246600119,0.10713825,83034.0,83033.0,1.5877918]
[1743246600518,0.17878571,83044.0,83043.0,0.1204773]
[1743246600713,0.17982572,83044.0,83043.0,0.8340773]
[1743246601204,0.17982572,83044.0,83043.0,1.0340773]
[1743246601409,0.17982572,83044.0,83043.0,1.2694773]
[1743246601610,0.17982572,83044.0,83043.0,1.5494773]
[1743246601812,0.17878571,83044.0,83043.0,1.5494773]
[1743246603519,0.0004,83044.0,83043.0,1.5494773]
[1743246606017,0.0004,83044.0,83043.0,1.7394773]
[1743246606412,0.00018066,83052.0,83051.0,0.1204657]
[1743246606607,0.00018066,83052.0,83051.0,0.8715057]
[1743246606807,0.00018066,83052.0,83051.0,1.2323057]
[1743246607219,0.00018066,83052.0,83051.0,1.6797057]
[1743246608111,0.00018066,83052.0,83051.0,1.68864876]
[1743246608923,0.01018066,83052.0,83051.0,1.68864876]
[1743246609924,0.01018066,83052.0,83051.0,1.32784876]
[1743246610109,0.01018066,83052.0,83051.0,1.68864876]
[1743246610816,0.01018066,83052.0,83051.0,1.45864876]
[1743246611120,0.01018066,83052.0,83051.0,1.58032876]
[1743246614928,0.01018066,83052.0,83051.0,1.86032876]
[1743246615122,0.00018066,83052.0,83051.0,1.86032876]
[1743246622827,0.00018066,83052.0,83051.0,2.26952876]
[1743246624132,0.2481,83068.0,83059.0,0.1204541]
[1743246624333,0.2481,83068.0,83059.0,1.2723341]
[1743246625033,0.2481,83068.0,83059.0,1.7217341]
[1743246625534,0.24827993,83068.0,83059.0,1.7217341]
[1743246626835,0.24827993,83068.0,83059.0,1.73411151]
[1743246629230,0.24827993,83068.0,83067.0,0.1204425]
[1743246629428,0.25939994,83068.0,83067.0,1.3840025]
[1743246629631,0.25827993,83068.0,83067.0,1.3840025]
[1743246630031,0.25827993,83068.0,83067.0,1.6296025]
[1743246630239,0.12847993,83068.0,83067.0,1.6296025]
[1743246630423,0.0004,83076.0,83075.0,0.1204309]
[1743246630628,0.1104,83076.0,83075.0,1.2523509]
[1743246630828,0.1104,83076.0,83075.0,1.4523509]
[1743246631027,0.0004,83076.0,83075.0,1.4523509]
[1743246631247,0.0004,83076.0,83075.0,1.7015509]
[1743246631839,0.0004,83076.0,83075.0,1.71388423]
[1743246635436,0.0004,83076.0,83075.0,1.35308423]
[1743246635638,0.0004,83076.0,83075.0,2.12308423]
[1743246636132,0.0104,83076.0,83075.0,2.12308423]
[1743246636329,0.243,83086.0,83085.0,0.1204164]
[1743246636541,0.26404001,83086.0,83085.0,1.3638564]
[1743246636734,0.243,83086.0,83085.0,1.3638564]
[1743246637126,0.243,83086.0,83085.0,1.8219564]
[1743246637329,0.253,83086.0,83085.0,1.8219564]
[1743246638340,0.243,83086.0,83085.0,1.8219564]
[1743246638929,0.2086786,83086.0,83085.0,1.8219564]
[1743246639939,0.1206,83091.0,83090.0,0.1204091]
[1743246640244,0.1206,83091.0,83090.0,1.0222491]
[1743246640436,0.1306,83091.0,83090.0,1.0222491]
[1743246640645,0.01,83091.0,83090.0,1.2222491]
[1743246641342,0.1374,83091.0,83090.0,1.3503491]
[1743246642242,0.2589,83091.0,83090.0,1.3503491]
[1743246644043,0.2489,83091.0,83090.0,1.3503491]
[1743246647532,0.2689,83091.0,83090.0,0.9422491]
[1743246647733,0.2689,83091.0,83090.0,0.4430091]
[1743246647944,0.1204178,83084.0,83083.0,0.0923309]
[1743246648246,0.3511378,83084.0,83081.0,0.1806319]
[1743246648437,0.3511378,83084.0,83083.0,0.1204193]
[1743246648633,0.23072,83084.0,83083.0,0.1210593]
[1743246649038,0.3511378,83084.0,83083.0,0.1210593]
[1743246649445,0.24271463,83084.0,83083.0,0.1210593]
[1743246649641,0.36313243,83084.0,83083.0,0.1210593]
[1743246650039,0.24271463,83084.0,83083.0,0.1210593]
[1743246651847,0.36801463,83084.0,83083.0,0.1210593]
[1743246653646,0.35602,83084.0,83083.0,0.5026193]
[1743246653844,0.3553,83084.0,83083.0,0.7457193]
[1743246654351,0.3553,83084.0,83083.0,0.9457193]
[1743246654748,0.3553,83084.0,83083.0,0.95795283]
[1743246654948,0.3553,83084.0,83083.0,1.23795283]
[1743246655146,0.23,83084.0,83083.0,1.23795283]
[1743246655347,0.0004,83092.0,83091.0,0.1204077]
[1743246655548,0.02124,83092.0,83091.0,0.4820477]
[1743246655751,0.0204,83092.0,83091.0,0.4820477]
[1743246655950,0.0204,83092.0,83091.0,0.7244477]
[1743246656354,0.0204,83092.0,83091.0,0.9944477]
[1743246660358,0.02909808,83092.0,83091.0,0.9944477]
[1743246660859,0.00909808,83092.0,83091.0,0.9944477]
[1743246661152,0.00909808,83092.0,83091.0,1.2644477]
[1743246662557,0.01909808,83092.0,83091.0,1.2644477]
[1743246663259,0.00909808,83092.0,83091.0,1.5244477]
[1743246664048,0.00909808,83092.0,83091.0,1.6459677]
[1743246665157,0.00909808,83092.0,83091.0,1.6489677]
[1743246665952,0.00909808,83092.0,83091.0,1.6459677]
[1743246666259,0.00909808,83092.0,83091.0,1.2674477]
[1743246666556,0.35950428,83092.0,83091.0,0.1242477]
[1743246666748,0.36034428,83092.0,83091.0,0.1242477]
[1743246666953,0.36034428,83092.0,83091.0,0.1264077]
[1743246667151,0.37224882,83092.0,83091.0,0.1270477]
[1743246667357,0.61494882,83092.0,83091.0,0.1260477]
[1743246667950,0.61494882,83092.0,83091.0,0.1240477]
[1743246668357,0.61494882,83092.0,83091.0,0.1210477]
[1743246668653,0.61494882,83092.0,83091.0,0.1204077]
[1743246669856,0.61494882,83092.0,83091.0,0.1210477]
[1743246670161,0.61494882,83092.0,83091.0,0.1204077]
[1743246672155,0.61494882,83092.0,83091.0,0.1211277]
[1743246673958,0.60625074,83092.0,83091.0,0.11242941]
[1743246674961,0.60625074,83092.0,83091.0,0.00072]
[1743246675158,0.1204091,83090.0,83089.0,0.0602046]
[1743246675360,0.3912491,83090.0,83089.0,0.0602046]
[1743246677561,0.7520491,83090.0,83089.0,0.0602046]
[1743246678965,0.3912491,83090.0,83089.0,0.0602046]
[1743246679165,0.7520491,83090.0,83089.0,0.0608446]
[1743246679466,0.7520491,83090.0,83089.0,0.0602046]
[1743246679662,0.1204106,83089.0,83088.0,0.119]
[1743246679863,0.6602706,83089.0,83088.0,0.119]
[1743246680165,0.6602706,83089.0,83088.0,0.11964]
[1743246680766,0.6602706,83089.0,83088.0,0.240052]
[1743246681861,1.0210706,83089.0,83088.0,0.121052]
[1743246682062,1.0210706,83089.0,83088.0,0.120412]
[1743246682658,0.1204149,83087.0,83086.0,0.1204144]
[1743246682959,0.3911749,83087.0,83086.0,0.1211744]
[1743246683159,0.6373749,83087.0,83086.0,0.1211744]
[1743246684466,0.5083749,83087.0,83086.0,0.1211744]
[1743246684770,0.5083749,83087.0,83086.0,0.3728744]
[1743246684961,0.6373749,83087.0,83086.0,0.5728744]
[1743246686065,0.6123749,83087.0,83086.0,0.5728744]
[1743246689268,0.0602113,83081.0,83068.0,0.21786962]
[1743246689456,0.4812265,83078.0,83077.0,0.00082055]
[1743246689663,0.7322265,83078.0,83077.0,0.00018055]
[1743246690166,0.7322265,83078.0,83077.0,0.12060855]
[1743246690363,0.7322265,83078.0,83077.0,0.12124855]
[1743246690970,0.7322265,83078.0,83077.0,0.23774855]
[1743246693566,0.6118,83078.0,83077.0,0.23774855]
[1743246694171,0.6118,83078.0,83077.0,0.43774855]
[1743246694576,0.7322265,83078.0,83077.0,0.43774855]
[1743246694777,0.3714265,83078.0,83077.0,0.43774855]
[1743246695870,0.3714265,83078.0,83077.0,0.55944855]
[1743246697075,0.251,83078.0,83077.0,0.55944855]
[1743246697275,0.25,83078.0,83077.0,0.55944855]
[1743246698473,0.25104001,83078.0,83077.0,0.55944855]
[1743246699080,0.14308029,83091.0,83090.0,0.1204091]
[1743246699279,0.16380029,83091.0,83090.0,0.1210491]
[1743246699583,0.02072,83091.0,83090.0,0.1210491]
[1743246699974,0.02072,83091.0,83090.0,0.3644491]
[1743246701084,0.1411277,83091.0,83090.0,0.3644491]
[1743246701578,0.2583277,83091.0,83090.0,0.3644491]
[1743246703386,0.6191277,83091.0,83090.0,0.3644491]
[1743246706683,0.2583277,83091.0,83090.0,0.3644491]
[1743246706888,0.6191277,83091.0,83090.0,0.3644491]
[1743246707587,0.5019277,83091.0,83090.0,0.3644491]
[1743246710181,0.7397277,83091.0,83090.0,0.3644491]
[1743246711284,0.6218277,83091.0,83090.0,0.3644491]
[1743246711490,0.5019277,83091.0,83090.0,0.3644491]
[1743246711887,0.1411277,83091.0,83090.0,0.3644491]
[1743246712090,0.5019277,83091.0,83090.0,0.3644491]
[1743246712280,0.6264277,83091.0,83090.0,0.3644491]
[1743246713187,0.5019277,83091.0,83090.0,0.3644491]
[1743246713882,0.1411277,83091.0,83090.0,0.3644491]
[1743246714083,0.5019277,83091.0,83090.0,0.3644491]
[1743246715683,0.38152,83091.0,83090.0,0.3644491]
[1743246716688,0.6231277,83091.0,83090.0,0.3644491]
[1743246716884,0.7465277,83091.0,83090.0,0.24404]
[1743246717084,0.1204265,83078.0,83077.0,0.2162445]
[1743246717285,0.73218651,83078.0,83077.0,0.2169245]
[1743246717887,0.37138651,83078.0,83077.0,0.2169245]
[1743246718090,1.09298651,83078.0,83077.0,0.2179245]